[Event "*** Titled Tuesday Blitz"]
[Site "Chess.com"]
[Date "2021.04.20"]
[Round "11"]
[White "mishanick"]
[Black "dretch"]
[Result "1-0"]
[WhiteElo "2976"]
[BlackElo "2799"]
[TimeControl "180+1"]
[EndTime "12:05:57 PDT"]
[Termination "mishanick won on time"]

1. e4 {[%clk 0:03:00.9]} 1... e6 {[%clk 0:03:00.1]} 2. d4 {[%clk 0:03:00.7]}
2... d5 {[%clk 0:03:00.5]} 3. Nc3 {[%clk 0:03:01.3]} 3... Nf6 {[%clk 0:03:00.3]}
4. e5 {[%clk 0:03:01.2]} 4... Nfd7 {[%clk 0:03:00.7]} 5. f4 {[%clk 0:03:01.9]}
5... c5 {[%clk 0:03:01.1]} 6. Nf3 {[%clk 0:03:02.6]} 6... Nc6 {[%clk 0:03:01.6]}
7. Be3 {[%clk 0:03:03.2]} 7... cxd4 {[%clk 0:03:01.3]} 8. Nxd4 {[%clk
0:03:04.1]} 8... Bc5 {[%clk 0:03:01.7]} 9. Qd2 {[%clk 0:03:03.4]} 9... O-O
{[%clk 0:03:02.1]} 10. Be2 {[%clk 0:02:55]} 10... Qe7 {[%clk 0:02:56.6]} 11. O-O
{[%clk 0:02:51.6]} 11... f6 {[%clk 0:02:56.8]} 12. exf6 {[%clk 0:02:50]} 12...
Nxf6 {[%clk 0:02:56.8]} 13. Nxc6 {[%clk 0:02:43.1]} 13... bxc6 {[%clk
0:02:56.1]} 14. Bxc5 {[%clk 0:02:31.8]} 14... Qxc5+ {[%clk 0:02:55.4]} 15. Kh1
{[%clk 0:02:32.4]} 15... Qb4 {[%clk 0:02:38.1]} 16. a3 {[%clk 0:02:22.5]} 16...
Qb8 {[%clk 0:02:36.8]} 17. Qd4 {[%clk 0:01:42.8]} 17... Qxb2 {[%clk 0:01:56.5]}
18. Bd3 {[%clk 0:01:27.2]} 18... Qb6 {[%clk 0:01:52.6]} 19. Qe5 {[%clk
0:01:27.2]} 19... Qb8 {[%clk 0:01:49.4]} 20. Qg5 {[%clk 0:01:26.5]} 20... Qd6
{[%clk 0:01:43.7]} 21. Rf3 {[%clk 0:01:26.2]} 21... Rb8 {[%clk 0:01:41.4]} 22.
Re1 {[%clk 0:01:25]} 22... Rb7 {[%clk 0:01:39.9]} 23. a4 {[%clk 0:01:19.5]}
23... Qb4 {[%clk 0:01:37.3]} 24. Qh4 {[%clk 0:00:55.4]} 24... d4 {[%clk
0:01:33.3]} 25. Ne4 {[%clk 0:00:39.4]} 25... h6 {[%clk 0:01:23.8]} 26. h3 {[%clk
0:00:38.1]} 26... Nxe4 {[%clk 0:01:17]} 27. Rxe4 {[%clk 0:00:37.2]} 27... Qxa4
{[%clk 0:01:14.3]} 28. Rg3 {[%clk 0:00:36.9]} 28... Qa1+ {[%clk 0:01:00.3]} 29.
Kh2 {[%clk 0:00:36.7]} 29... Rb1 {[%clk 0:00:58]} 30. Rg6 {[%clk 0:00:36.3]}
30... e5 {[%clk 0:00:36.8]} 31. Qe7 {[%clk 0:00:29.7]} 31... Rh1+ {[%clk
0:00:34.7]} 32. Kg3 {[%clk 0:00:28]} 32... Rxh3+ {[%clk 0:00:35.2]} 33. Kf2
{[%clk 0:00:23.4]} 33... Rf7 {[%clk 0:00:17.7]} 34. Qe8+ {[%clk 0:00:23.6]}
34... Rf8 {[%clk 0:00:15.7]} 35. Qxe5 {[%clk 0:00:21.8]} 35... Rf7 {[%clk
0:00:08.1]} 36. Qe8+ {[%clk 0:00:21.2]} 36... Rf8 {[%clk 0:00:08.3]} 37. Bc4+
{[%clk 0:00:17.5]} 37... Kh7 {[%clk 0:00:07.9]} 38. Rxg7+ {[%clk 0:00:17.7]}
38... Kxg7 {[%clk 0:00:07.9]} 39. Re7+ {[%clk 0:00:18.2]} 39... Kf6 {[%clk
0:00:04.3]} 40. Qxf8+ {[%clk 0:00:18.3]} 1-0

[Event "*** Titled Tuesday Blitz"]
[Site "Chess.com"]
[Date "2021.04.20"]
[Round "11"]
[White "fabianvivasz"]
[Black "NoboaKevin1999"]
[Result "0-1"]
[WhiteElo "2343"]
[BlackElo "2455"]
[TimeControl "180+1"]
[EndTime "12:05:57 PDT"]
[Termination "NoboaKevin1999 won on time"]

1. c4 {[%clk 0:02:58.5]} 1... e5 {[%clk 0:02:58.9]} 2. Nc3 {[%clk 0:02:58.2]}
2... Nf6 {[%clk 0:02:55.9]} 3. Nf3 {[%clk 0:02:58.5]} 3... Nc6 {[%clk
0:02:54.2]} 4. e4 {[%clk 0:02:58.9]} 4... Bb4 {[%clk 0:02:46.5]} 5. d3 {[%clk
0:02:57.6]} 5... d6 {[%clk 0:02:45.6]} 6. a3 {[%clk 0:02:57.4]} 6... Bxc3+
{[%clk 0:02:45.3]} 7. bxc3 {[%clk 0:02:58.3]} 7... h6 {[%clk 0:02:45.3]} 8. g3
{[%clk 0:02:54.5]} 8... Ne7 {[%clk 0:02:41.5]} 9. Bg2 {[%clk 0:02:46.2]} 9...
O-O {[%clk 0:02:39.6]} 10. Nh4 {[%clk 0:02:43.5]} 10... c6 {[%clk 0:02:37.8]}
11. O-O {[%clk 0:02:38.7]} 11... d5 {[%clk 0:02:34.7]} 12. cxd5 {[%clk 0:02:27]}
12... cxd5 {[%clk 0:02:33.8]} 13. f4 {[%clk 0:01:51.9]} 13... dxe4 {[%clk
0:02:28.9]} 14. fxe5 {[%clk 0:01:52.2]} 14... Nd7 {[%clk 0:02:08.7]} 15. d4
{[%clk 0:01:44.9]} 15... f5 {[%clk 0:01:51]} 16. exf6 {[%clk 0:00:53.5]} 16...
Nxf6 {[%clk 0:01:44]} 17. Bf4 {[%clk 0:00:33.5]} 17... Ned5 {[%clk 0:01:37.9]}
18. Be5 {[%clk 0:00:24.9]} 18... Be6 {[%clk 0:01:16.3]} 19. Qe1 {[%clk
0:00:13.7]} 19... Rc8 {[%clk 0:01:07.1]} 20. Ng6 {[%clk 0:00:09.3]} 20... Re8
{[%clk 0:01:02.3]} 21. Bxe4 {[%clk 0:00:03]} 21... Bh3 {[%clk 0:00:51]} 22. Rf2
{[%clk 0:00:02.2]} 22... Rxc3 {[%clk 0:00:48.3]} 23. Bxf6 {[%clk 0:00:01.9]}
23... Nxf6 {[%clk 0:00:29.1]} 24. Qxc3 {[%clk 0:00:01.8]} 24... Nxe4 {[%clk
0:00:26.3]} 25. Qb3+ {[%clk 0:00:02.1]} 25... Be6 {[%clk 0:00:25.1]} 26. Qf3
{[%clk 0:00:01.4]} 26... Nxf2 {[%clk 0:00:23.8]} 27. Qxf2 {[%clk 0:00:02.3]}
27... Qg5 {[%clk 0:00:19.1]} 28. Nf4 {[%clk 0:00:02]} 28... Bf7 {[%clk
0:00:18.3]} 29. Re1 {[%clk 0:00:02.4]} 29... Rxe1+ {[%clk 0:00:17.9]} 30. Qxe1
{[%clk 0:00:03.3]} 30... Qf5 {[%clk 0:00:18.3]} 31. Qe5 {[%clk 0:00:03.5]} 31...
Qb1+ {[%clk 0:00:17.8]} 32. Kf2 {[%clk 0:00:03.3]} 32... Qb2+ {[%clk 0:00:17.6]}
33. Qe2 {[%clk 0:00:02.6]} 33... Qxa3 {[%clk 0:00:17.1]} 34. d5 {[%clk
0:00:02.3]} 34... Qd6 {[%clk 0:00:15]} 35. Qc4 {[%clk 0:00:02.1]} 35... a5
{[%clk 0:00:12.7]} 36. Qc7 {[%clk 0:00:02.4]} 36... Qxc7 {[%clk 0:00:12.2]} 0-1

[Event "*** Titled Tuesday Blitz"]
[Site "Chess.com"]
[Date "2021.04.20"]
[Round "11"]
[White "ajedrez1101"]
[Black "Zmof"]
[Result "0-1"]
[WhiteElo "2160"]
[BlackElo "2250"]
[TimeControl "180+1"]
[EndTime "12:05:57 PDT"]
[Termination "Zmof won on time"]

1. b3 {[%clk 0:03:00.9]} 1... c5 {[%clk 0:02:55.6]} 2. Bb2 {[%clk 0:03:00.4]}
2... Nc6 {[%clk 0:02:55.8]} 3. e3 {[%clk 0:03:00.7]} 3... Nf6 {[%clk 0:02:55.2]}
4. Bb5 {[%clk 0:03:00.6]} 4... d6 {[%clk 0:02:48]} 5. Nf3 {[%clk 0:02:59.3]}
5... Bd7 {[%clk 0:02:46.7]} 6. O-O {[%clk 0:02:54.7]} 6... e6 {[%clk 0:02:46.5]}
7. d4 {[%clk 0:02:52.6]} 7... cxd4 {[%clk 0:02:42.8]} 8. Nxd4 {[%clk 0:02:51.3]}
8... Nxd4 {[%clk 0:02:39.8]} 9. Bxd7+ {[%clk 0:02:49.5]} 9... Qxd7 {[%clk
0:02:40.3]} 10. Qxd4 {[%clk 0:02:49.6]} 10... Be7 {[%clk 0:02:39.3]} 11. c4
{[%clk 0:02:49.8]} 11... O-O {[%clk 0:02:38.8]} 12. Nc3 {[%clk 0:02:48.7]} 12...
Rfd8 {[%clk 0:02:36]} 13. Rfd1 {[%clk 0:02:45.9]} 13... Ne8 {[%clk 0:02:35.4]}
14. Ne4 {[%clk 0:02:31]} 14... Qc6 {[%clk 0:02:25.8]} 15. Rac1 {[%clk
0:02:12.9]} 15... a6 {[%clk 0:02:20.3]} 16. Ba3 {[%clk 0:02:06]} 16... Rd7
{[%clk 0:02:05.7]} 17. Rd2 {[%clk 0:02:05.5]} 17... Rad8 {[%clk 0:02:05]} 18.
Rcd1 {[%clk 0:02:05.6]} 18... b5 {[%clk 0:01:59.9]} 19. Bb4 {[%clk 0:01:43.8]}
19... bxc4 {[%clk 0:01:58.4]} 20. bxc4 {[%clk 0:01:43.1]} 20... Rc8 {[%clk
0:01:26.3]} 21. h3 {[%clk 0:00:43.5]} 21... Qxc4 {[%clk 0:01:23.2]} 22. Nxd6
{[%clk 0:00:32.7]} 22... Bxd6 {[%clk 0:01:09.1]} 23. Qxc4 {[%clk 0:00:25.6]}
23... Rxc4 {[%clk 0:01:08.8]} 24. Bxd6 {[%clk 0:00:25.5]} 24... f6 {[%clk
0:00:41.3]} 25. Bb8 {[%clk 0:00:18.6]} 25... Rxd2 {[%clk 0:00:39]} 26. Rxd2
{[%clk 0:00:18.9]} 26... Rc1+ {[%clk 0:00:36.2]} 27. Kh2 {[%clk 0:00:18.5]}
27... Rc8 {[%clk 0:00:37]} 28. Bd6 {[%clk 0:00:17.6]} 28... Kf7 {[%clk
0:00:31.3]} 29. Kg3 {[%clk 0:00:14.5]} 29... Rd8 {[%clk 0:00:25]} 30. Bb4 {[%clk
0:00:13.6]} 30... Rxd2 {[%clk 0:00:24.2]} 31. Bxd2 {[%clk 0:00:14.5]} 31... e5
{[%clk 0:00:24.9]} 32. Kf3 {[%clk 0:00:11.9]} 32... f5 {[%clk 0:00:23.4]} 33. e4
{[%clk 0:00:09.8]} 33... g6 {[%clk 0:00:23.4]} 34. g4 {[%clk 0:00:06.4]} 34...
Ke6 {[%clk 0:00:22.7]} 35. exf5+ {[%clk 0:00:06.1]} 35... gxf5 {[%clk
0:00:22.9]} 36. gxf5+ {[%clk 0:00:06.4]} 36... Kxf5 {[%clk 0:00:22.4]} 37. Bb4
{[%clk 0:00:06.2]} 37... Nf6 {[%clk 0:00:22]} 38. Be7 {[%clk 0:00:05.2]} 38...
e4+ {[%clk 0:00:20.8]} 39. Ke2 {[%clk 0:00:04.4]} 39... Nd5 {[%clk 0:00:21.1]}
40. Bb4 {[%clk 0:00:01]} 40... h5 {[%clk 0:00:21.7]} 0-1

[Event "*** Titled Tuesday Blitz"]
[Site "Chess.com"]
[Date "2021.04.20"]
[Round "11"]
[White "PavelShkapenko"]
[Black "Vanina1989"]
[Result "0-1"]
[WhiteElo "2706"]
[BlackElo "2798"]
[TimeControl "180+1"]
[EndTime "12:05:58 PDT"]
[Termination "Vanina1989 won by resignation"]

1. e4 {[%clk 0:03:00.9]} 1... c6 {[%clk 0:02:59.8]} 2. d4 {[%clk 0:02:56.8]}
2... d5 {[%clk 0:02:59.9]} 3. exd5 {[%clk 0:02:57.1]} 3... cxd5 {[%clk
0:02:59.9]} 4. Bd3 {[%clk 0:02:57.6]} 4... Nc6 {[%clk 0:02:59.6]} 5. c3 {[%clk
0:02:57.8]} 5... Nf6 {[%clk 0:02:59.6]} 6. Bf4 {[%clk 0:02:57.6]} 6... g6 {[%clk
0:02:58.9]} 7. Nf3 {[%clk 0:02:54.8]} 7... Bf5 {[%clk 0:02:59]} 8. Bb5 {[%clk
0:02:52]} 8... Qb6 {[%clk 0:02:58]} 9. Qa4 {[%clk 0:02:51.8]} 9... a6 {[%clk
0:02:38]} 10. Bxc6+ {[%clk 0:02:43.8]} 10... bxc6 {[%clk 0:02:38]} 11. Ne5
{[%clk 0:02:35.2]} 11... Rc8 {[%clk 0:02:37.1]} 12. Qb3 {[%clk 0:02:34.7]} 12...
Qa7 {[%clk 0:02:24.6]} 13. Qa4 {[%clk 0:02:28.6]} 13... Bg7 {[%clk 0:02:23.6]}
14. Nd2 {[%clk 0:02:26.5]} 14... O-O {[%clk 0:02:22]} 15. Nb3 {[%clk 0:02:26.6]}
15... Ne4 {[%clk 0:02:08.8]} 16. f3 {[%clk 0:02:18.1]} 16... Nd6 {[%clk
0:02:08.7]} 17. O-O {[%clk 0:01:49.3]} 17... Bxe5 {[%clk 0:02:07.7]} 18. Bxe5
{[%clk 0:01:46.5]} 18... Nc4 {[%clk 0:02:08.1]} 19. Kh1 {[%clk 0:01:30]} 19...
Nxb2 {[%clk 0:02:06.2]} 20. Qa3 {[%clk 0:01:29.2]} 20... Nc4 {[%clk 0:02:05.7]}
21. Qc1 {[%clk 0:01:29.3]} 21... Nxe5 {[%clk 0:02:04.4]} 22. dxe5 {[%clk
0:01:29.1]} 22... c5 {[%clk 0:02:04.6]} 23. Qe3 {[%clk 0:01:24.4]} 23... Rfd8
{[%clk 0:02:02.3]} 24. Rfd1 {[%clk 0:01:22.5]} 24... Qb6 {[%clk 0:01:55.2]} 25.
Rd2 {[%clk 0:01:18.5]} 25... a5 {[%clk 0:01:50.2]} 26. Rad1 {[%clk 0:01:14.2]}
26... a4 {[%clk 0:01:45.4]} 27. Nc1 {[%clk 0:01:14.1]} 27... d4 {[%clk
0:01:44.6]} 28. cxd4 {[%clk 0:01:11.7]} 28... cxd4 {[%clk 0:01:44.5]} 29. Qf2
{[%clk 0:01:11.1]} 29... Qc5 {[%clk 0:01:17]} 30. Ne2 {[%clk 0:01:01.9]} 30...
d3 {[%clk 0:01:14.9]} 31. Ng3 {[%clk 0:00:42.3]} 31... Qxe5 {[%clk 0:01:14.8]}
32. f4 {[%clk 0:00:40.4]} 32... Qd5 {[%clk 0:01:13.5]} 33. Qe3 {[%clk
0:00:40.5]} 33... e6 {[%clk 0:01:09]} 34. h3 {[%clk 0:00:38.3]} 34... Qd4 {[%clk
0:01:06.4]} 35. Qxd4 {[%clk 0:00:37.3]} 35... Rxd4 {[%clk 0:01:05.9]} 36. Nxf5
{[%clk 0:00:38]} 36... gxf5 {[%clk 0:01:06]} 37. Rxd3 {[%clk 0:00:38.6]} 37...
Rxf4 {[%clk 0:01:06.3]} 38. R1d2 {[%clk 0:00:26.8]} 38... Kg7 {[%clk 0:01:00.7]}
39. Kh2 {[%clk 0:00:25.7]} 39... Kf6 {[%clk 0:01:00.8]} 40. Rd7 {[%clk
0:00:25.6]} 40... h5 {[%clk 0:00:52.6]} 41. Ra7 {[%clk 0:00:25.4]} 41... h4
{[%clk 0:00:52.1]} 42. Rdd7 {[%clk 0:00:25.6]} 42... Rf8 {[%clk 0:00:49.3]} 43.
Rdb7 {[%clk 0:00:24.8]} 43... Rd4 {[%clk 0:00:47.7]} 44. Ra5 {[%clk 0:00:22.5]}
44... Rg8 {[%clk 0:00:36.2]} 45. Raa7 {[%clk 0:00:22.4]} 45... Rd2 {[%clk
0:00:35.9]} 46. Rxf7+ {[%clk 0:00:21.4]} 46... Ke5 {[%clk 0:00:36.3]} 47. Ra5+
{[%clk 0:00:21.6]} 47... Kd6 {[%clk 0:00:36.5]} 48. Ra6+ {[%clk 0:00:20.9]}
48... Kc5 {[%clk 0:00:36.6]} 0-1

[Event "*** Titled Tuesday Blitz"]
[Site "Chess.com"]
[Date "2021.04.20"]
[Round "11"]
[White "halldorgretar"]
[Black "DKmirl"]
[Result "0-1"]
[WhiteElo "2105"]
[BlackElo "1897"]
[TimeControl "180+1"]
[EndTime "12:05:58 PDT"]
[Termination "DKmirl won on time"]

1. d4 {[%clk 0:03:00.9]} 1... d5 {[%clk 0:03:00.3]} 2. Nf3 {[%clk 0:02:59.1]}
2... c6 {[%clk 0:03:00.9]} 3. c4 {[%clk 0:02:55.3]} 3... Nf6 {[%clk 0:03:00.8]}
4. Nc3 {[%clk 0:02:53.9]} 4... g6 {[%clk 0:03:01.3]} 5. g3 {[%clk 0:02:50.4]}
5... Bg7 {[%clk 0:03:01.9]} 6. Bg2 {[%clk 0:02:50.4]} 6... O-O {[%clk
0:03:02.4]} 7. O-O {[%clk 0:02:50.3]} 7... Bf5 {[%clk 0:03:00.7]} 8. Qb3 {[%clk
0:02:39]} 8... Be4 {[%clk 0:03:00.6]} 9. Qxb7 {[%clk 0:02:29.4]} 9... Nbd7
{[%clk 0:02:48.5]} 10. Qxc6 {[%clk 0:02:25]} 10... Rc8 {[%clk 0:02:46.5]} 11.
Qa6 {[%clk 0:02:18.9]} 11... Rxc4 {[%clk 0:02:37.3]} 12. Qxa7 {[%clk 0:02:17.9]}
12... Nb8 {[%clk 0:01:59.3]} 13. Nxe4 {[%clk 0:01:29.1]} 13... Nxe4 {[%clk
0:01:56.2]} 14. Be3 {[%clk 0:01:10.5]} 14... Nc6 {[%clk 0:01:52.5]} 15. Qa3
{[%clk 0:01:08.4]} 15... Nxd4 {[%clk 0:01:48]} 16. Nxd4 {[%clk 0:01:02.1]} 16...
Bxd4 {[%clk 0:01:47.7]} 17. Bxd4 {[%clk 0:01:01.5]} 17... Rxd4 {[%clk
0:01:48.6]} 18. Rfd1 {[%clk 0:00:59.8]} 18... Qb6 {[%clk 0:01:32.2]} 19. Qe3
{[%clk 0:00:45.6]} 19... Rxd1+ {[%clk 0:01:16.7]} 20. Rxd1 {[%clk 0:00:42.9]}
20... Qxb2 {[%clk 0:01:15.7]} 21. Rxd5 {[%clk 0:00:35.4]} 21... Qb1+ {[%clk
0:01:04.9]} 22. Bf1 {[%clk 0:00:33.3]} 22... Nf6 {[%clk 0:00:51]} 23. Rd2 {[%clk
0:00:30]} 23... Qc1 {[%clk 0:00:34.5]} 24. Qd4 {[%clk 0:00:18.6]} 24... Rb8
{[%clk 0:00:28.1]} 25. Rd1 {[%clk 0:00:17.8]} 25... Qc2 {[%clk 0:00:21.1]} 26.
a4 {[%clk 0:00:16.2]} 26... Ra8 {[%clk 0:00:18.6]} 27. Ra1 {[%clk 0:00:12.2]}
27... Ne8 {[%clk 0:00:10.4]} 28. a5 {[%clk 0:00:11.9]} 28... Nd6 {[%clk
0:00:10.6]} 29. a6 {[%clk 0:00:11.7]} 29... Qc7 {[%clk 0:00:07.5]} 30. a7 {[%clk
0:00:09.3]} 30... Nb5 {[%clk 0:00:07]} 31. Qe4 {[%clk 0:00:06.1]} 31... Rxa7
{[%clk 0:00:06.5]} 32. Rb1 {[%clk 0:00:02.2]} 32... Nd6 {[%clk 0:00:06.3]} 0-1

[Event "*** Titled Tuesday Blitz"]
[Site "Chess.com"]
[Date "2021.04.20"]
[Round "11"]
[White "draksbg"]
[Black "superchess02"]
[Result "0-1"]
[WhiteElo "2577"]
[BlackElo "2748"]
[TimeControl "180+1"]
[EndTime "12:06:00 PDT"]
[Termination "superchess02 won by checkmate"]

1. e4 {[%clk 0:02:55.7]} 1... c5 {[%clk 0:03:00]} 2. Nf3 {[%clk 0:02:55.7]} 2...
d6 {[%clk 0:03:00.5]} 3. Bb5+ {[%clk 0:02:54.6]} 3... Nd7 {[%clk 0:03:00.2]} 4.
O-O {[%clk 0:02:54.5]} 4... a6 {[%clk 0:03:00.7]} 5. Bd3 {[%clk 0:02:54.2]} 5...
b5 {[%clk 0:03:00]} 6. c4 {[%clk 0:02:53.9]} 6... bxc4 {[%clk 0:02:58.4]} 7.
Bxc4 {[%clk 0:02:54.8]} 7... Ngf6 {[%clk 0:02:58.1]} 8. Nc3 {[%clk 0:02:54.8]}
8... Bb7 {[%clk 0:02:57.6]} 9. d4 {[%clk 0:02:41.5]} 9... cxd4 {[%clk 0:02:51]}
10. Nxd4 {[%clk 0:02:40.5]} 10... e6 {[%clk 0:02:50]} 11. Re1 {[%clk 0:02:36.7]}
11... Rc8 {[%clk 0:02:50]} 12. Bb3 {[%clk 0:02:28.7]} 12... Nc5 {[%clk
0:02:49.6]} 13. Bc2 {[%clk 0:02:27.5]} 13... Be7 {[%clk 0:02:47.2]} 14. f4
{[%clk 0:02:01.3]} 14... O-O {[%clk 0:02:44.9]} 15. Kh1 {[%clk 0:01:42.5]} 15...
d5 {[%clk 0:02:31.8]} 16. e5 {[%clk 0:01:42]} 16... Nfe4 {[%clk 0:02:32.2]} 17.
Nxe4 {[%clk 0:01:39.4]} 17... dxe4 {[%clk 0:02:29.9]} 18. Be3 {[%clk 0:01:37.2]}
18... Qd5 {[%clk 0:02:26.7]} 19. Qg4 {[%clk 0:01:14.7]} 19... f5 {[%clk
0:01:46.3]} 20. exf6 {[%clk 0:01:12.9]} 20... Rxf6 {[%clk 0:01:46]} 21. Rad1
{[%clk 0:01:09.4]} 21... Rg6 {[%clk 0:01:42.8]} 22. Qh3 {[%clk 0:01:08.7]} 22...
Rh6 {[%clk 0:00:58.6]} 23. Qg4 {[%clk 0:01:07.3]} 23... Rh4 {[%clk 0:00:55.9]}
24. Qg3 {[%clk 0:00:52.9]} 24... Qh5 {[%clk 0:00:55.2]} 25. Nxe6 {[%clk
0:00:35.5]} 25... Nxe6 {[%clk 0:00:47.1]} 26. Bb3 {[%clk 0:00:35.9]} 26... Rc6
{[%clk 0:00:29.2]} 27. Rd7 {[%clk 0:00:35.1]} 27... Rg4 {[%clk 0:00:29.1]} 28.
Qh3 {[%clk 0:00:28.6]} 28... Rh4 {[%clk 0:00:20]} 29. Bxe6+ {[%clk 0:00:12.1]}
29... Kf8 {[%clk 0:00:19.6]} 30. Qg3 {[%clk 0:00:11.1]} 30... Bc8 {[%clk
0:00:15.3]} 31. Rxe7 {[%clk 0:00:10.3]} 31... Kxe7 {[%clk 0:00:16.2]} 32. Bxc8
{[%clk 0:00:10.3]} 32... Rxc8 {[%clk 0:00:15.1]} 33. Qxg7+ {[%clk 0:00:10.3]}
33... Ke6 {[%clk 0:00:15.4]} 34. Bd4 {[%clk 0:00:05.9]} 34... Rxh2+ {[%clk
0:00:13.9]} 35. Kg1 {[%clk 0:00:06.6]} 35... Rh1+ {[%clk 0:00:14.5]} 36. Kf2
{[%clk 0:00:07.2]} 36... Rc2+ {[%clk 0:00:15]} 37. Kg3 {[%clk 0:00:06.5]} 37...
Qh4# {[%clk 0:00:15]} 0-1

[Event "*** Titled Tuesday Blitz"]
[Site "Chess.com"]
[Date "2021.04.20"]
[Round "11"]
[White "kai_nov"]
[Black "CM_rui"]
[Result "0-1"]
[WhiteElo "2303"]
[BlackElo "2447"]
[TimeControl "180+1"]
[EndTime "12:06:01 PDT"]
[Termination "CM_rui won on time"]

1. d4 {[%clk 0:03:00.9]} 1... Nf6 {[%clk 0:02:58.6]} 2. c4 {[%clk 0:03:00.5]}
2... e6 {[%clk 0:02:59]} 3. Nc3 {[%clk 0:03:00.3]} 3... Bb4 {[%clk 0:02:59.6]}
4. f3 {[%clk 0:03:00.3]} 4... O-O {[%clk 0:02:59.4]} 5. e4 {[%clk 0:02:59.3]}
5... d6 {[%clk 0:02:55.6]} 6. Ne2 {[%clk 0:02:53.7]} 6... Qe7 {[%clk 0:02:50.8]}
7. a3 {[%clk 0:02:51.4]} 7... Bxc3+ {[%clk 0:02:50.4]} 8. Nxc3 {[%clk
0:02:51.1]} 8... e5 {[%clk 0:02:50.9]} 9. Bg5 {[%clk 0:02:41.2]} 9... c6 {[%clk
0:02:47.4]} 10. d5 {[%clk 0:02:39.7]} 10... c5 {[%clk 0:02:44.4]} 11. Qd2 {[%clk
0:02:32.3]} 11... h6 {[%clk 0:02:39.7]} 12. Bh4 {[%clk 0:02:31.1]} 12... a6
{[%clk 0:02:36.5]} 13. Bd3 {[%clk 0:02:28.2]} 13... Nbd7 {[%clk 0:02:30.2]} 14.
g4 {[%clk 0:01:57.7]} 14... Re8 {[%clk 0:01:54.9]} 15. Qf2 {[%clk 0:01:21.6]}
15... g5 {[%clk 0:01:42.3]} 16. Bg3 {[%clk 0:01:20]} 16... Kg7 {[%clk
0:01:42.9]} 17. h4 {[%clk 0:01:19.4]} 17... Nh7 {[%clk 0:01:28.2]} 18. hxg5
{[%clk 0:01:15.8]} 18... Nxg5 {[%clk 0:01:24.5]} 19. O-O-O {[%clk 0:01:10.9]}
19... b5 {[%clk 0:01:23]} 20. cxb5 {[%clk 0:01:05.8]} 20... axb5 {[%clk
0:01:23.9]} 21. Bxb5 {[%clk 0:01:06]} 21... Qf6 {[%clk 0:01:17.8]} 22. f4 {[%clk
0:00:51.8]} 22... exf4 {[%clk 0:01:09.1]} 23. Bxf4 {[%clk 0:00:51.5]} 23... Qg6
{[%clk 0:00:57.1]} 24. Bxd7 {[%clk 0:00:39.4]} 24... Bxd7 {[%clk 0:00:57.1]} 25.
e5 {[%clk 0:00:39.6]} 25... dxe5 {[%clk 0:00:53.5]} 26. Be3 {[%clk 0:00:37.6]}
26... c4 {[%clk 0:00:41.6]} 27. Rh2 {[%clk 0:00:28.7]} 27... Bxg4 {[%clk
0:00:26.8]} 28. Rg1 {[%clk 0:00:23.6]} 28... h5 {[%clk 0:00:27.1]} 29. Rhg2
{[%clk 0:00:16]} 29... Nh3 {[%clk 0:00:25.5]} 30. Qh4 {[%clk 0:00:12.1]} 30...
Nxg1 {[%clk 0:00:22.9]} 31. Rxg1 {[%clk 0:00:12.4]} 31... Ra6 {[%clk 0:00:19.5]}
32. Qg3 {[%clk 0:00:09.5]} 32... Qd3 {[%clk 0:00:17.3]} 33. Qf2 {[%clk
0:00:09.1]} 33... Rf6 {[%clk 0:00:14.6]} 34. Qd2 {[%clk 0:00:09.1]} 34... Rf1+
{[%clk 0:00:12.8]} 35. Rxf1 {[%clk 0:00:08.3]} 35... Qxf1+ {[%clk 0:00:13.5]}
36. Nd1 {[%clk 0:00:06.6]} 36... c3 {[%clk 0:00:13.6]} 37. bxc3 {[%clk
0:00:06.3]} 37... Rb8 {[%clk 0:00:13.5]} 38. c4 {[%clk 0:00:02.5]} 38... Bf5
{[%clk 0:00:12.4]} 0-1

[Event "*** Titled Tuesday Blitz"]
[Site "Chess.com"]
[Date "2021.04.20"]
[Round "11"]
[White "Sanyura"]
[Black "Manukyan_Artak"]
[Result "1-0"]
[WhiteElo "2600"]
[BlackElo "2434"]
[TimeControl "180+1"]
[EndTime "12:06:03 PDT"]
[Termination "Sanyura won on time"]

1. e4 {[%clk 0:02:52.7]} 1... c6 {[%clk 0:02:58.5]} 2. Nf3 {[%clk 0:02:52]} 2...
d5 {[%clk 0:02:59.4]} 3. Nc3 {[%clk 0:02:52.5]} 3... Bg4 {[%clk 0:02:59]} 4. h3
{[%clk 0:02:52.9]} 4... Bxf3 {[%clk 0:02:59.1]} 5. Qxf3 {[%clk 0:02:53.8]} 5...
Nf6 {[%clk 0:02:59.6]} 6. g3 {[%clk 0:02:52.1]} 6... e5 {[%clk 0:02:57.2]} 7.
Bg2 {[%clk 0:02:50.1]} 7... d4 {[%clk 0:02:56.1]} 8. Nb1 {[%clk 0:02:48.2]} 8...
c5 {[%clk 0:02:52.8]} 9. d3 {[%clk 0:02:47.7]} 9... Nc6 {[%clk 0:02:52.2]} 10.
O-O {[%clk 0:02:47.7]} 10... Bd6 {[%clk 0:02:46.2]} 11. Nd2 {[%clk 0:02:44.9]}
11... O-O {[%clk 0:02:45.7]} 12. g4 {[%clk 0:02:42.5]} 12... Nd7 {[%clk
0:02:41.6]} 13. a3 {[%clk 0:02:22.9]} 13... Re8 {[%clk 0:02:32.7]} 14. Qg3
{[%clk 0:02:22.3]} 14... Nf8 {[%clk 0:02:31.6]} 15. Nc4 {[%clk 0:02:21.5]} 15...
Ne6 {[%clk 0:02:25.3]} 16. h4 {[%clk 0:02:04.3]} 16... Nf4 {[%clk 0:02:23.6]}
17. Bxf4 {[%clk 0:01:59]} 17... exf4 {[%clk 0:02:24.5]} 18. Qh3 {[%clk
0:01:59.1]} 18... Ne5 {[%clk 0:02:04]} 19. Nxe5 {[%clk 0:01:50.8]} 19... Bxe5
{[%clk 0:01:56.9]} 20. g5 {[%clk 0:01:50.3]} 20... b5 {[%clk 0:01:48.7]} 21. Qg4
{[%clk 0:01:44.7]} 21... Qc8 {[%clk 0:01:31.2]} 22. Bh3 {[%clk 0:01:03.9]} 22...
Qxg4+ {[%clk 0:01:26.1]} 23. Bxg4 {[%clk 0:01:04.8]} 23... g6 {[%clk 0:01:17.4]}
24. Bd7 {[%clk 0:01:02.2]} 24... Re7 {[%clk 0:01:06.8]} 25. Bxb5 {[%clk
0:01:01.7]} 25... Rb8 {[%clk 0:01:02.3]} 26. Bc4 {[%clk 0:01:01.4]} 26... Rxb2
{[%clk 0:00:59.6]} 27. Bb3 {[%clk 0:01:01.6]} 27... Rc7 {[%clk 0:00:42.6]} 28.
Kg2 {[%clk 0:00:34.8]} 28... c4 {[%clk 0:00:35.8]} 29. Bxc4 {[%clk 0:00:33.8]}
29... Rxc2 {[%clk 0:00:35.2]} 30. Rab1 {[%clk 0:00:31]} 30... Kg7 {[%clk
0:00:21.8]} 31. Rb5 {[%clk 0:00:30.4]} 31... Bd6 {[%clk 0:00:19.9]} 32. Rfb1
{[%clk 0:00:21.2]} 32... R2xc4 {[%clk 0:00:09.8]} 33. dxc4 {[%clk 0:00:21]}
33... Rxc4 {[%clk 0:00:09.7]} 34. Rd5 {[%clk 0:00:21.5]} 34... Bxa3 {[%clk
0:00:09.1]} 35. Rb7 {[%clk 0:00:22.1]} 35... d3 {[%clk 0:00:06.7]} 36. Rxd3
{[%clk 0:00:20.2]} 36... Bc5 {[%clk 0:00:03.3]} 37. Rdd7 {[%clk 0:00:21.1]}
37... Rc2 {[%clk 0:00:03]} 38. Rxf7+ {[%clk 0:00:21.2]} 38... Kg8 {[%clk
0:00:03.4]} 39. Rg7+ {[%clk 0:00:20.9]} 39... Kf8 {[%clk 0:00:03.8]} 40. Rxh7
{[%clk 0:00:18.6]} 40... Rxf2+ {[%clk 0:00:03.1]} 41. Kh3 {[%clk 0:00:19]} 1-0